bitfinex/quotes_SOLUSD_20251201
["timestamp","ask_amount","ask_price","bid_price","bid_amount"]
[1764567941146,9.47994492,126.28,126.25,27.72225369]
[1764567941429,4.17,126.27,126.25,27.72225369]
[1764567941930,0.67,126.26,126.25,27.72225369]
[1764567943535,4.17,126.27,126.25,27.72225369]
[1764567945220,0.67,126.26,126.25,27.72225369]
[1764567945527,4.17,126.27,126.25,27.72225369]
[1764567946729,0.67,126.26,126.25,27.72225369]
[1764567947837,4.17,126.27,126.25,27.72225369]
[1764567951306,4.17,126.27,126.22,39.61282957]
[1764567951307,8.80994492,126.26,126.22,19.80668636]
[1764567951507,0.67,126.26,126.23,0.51]
[1764567951737,0.67,126.26,126.23,5.0302425]
[1764567952955,0.67,126.26,126.25,16.308864]
[1764567953123,0.67,126.27,126.26,7.92016473]
[1764567954749,87.04446704,126.35,126.27,0.51]
[1764567954952,87.04446704,126.35,126.3,4.5202425]
[1764567954953,12.04446704,126.35,126.3,4.5202425]
[1764567955154,12.04446704,126.35,126.34,20.8291065]
[1764567955830,12.04446704,126.35,126.34,21.3391065]
[1764567956032,1e-08,126.35,126.34,21.3391065]
[1764567956349,1e-08,126.35,126.34,20.8291065]
[1764567956549,1e-08,126.35,126.34,24.22401359]
[1764567956845,13.95120321,126.38,126.34,28.74425609]
[1764567957046,14.88902732,126.4,126.38,16.308864]
[1764567957236,15.60902732,126.4,126.38,4.5202425]
[1764567957442,15.60902732,126.4,126.37,16.308864]
[1764567957443,0.72,126.39,126.37,16.308864]
[1764567957845,0.72,126.39,126.37,20.8291065]
[1764567958151,0.72,126.39,126.37,16.308864]
[1764567958755,0.72,126.39,126.38,7.9126444]
[1764567958955,0.72,126.39,126.36,32.21827222]
[1764567959140,0.72,126.39,126.36,27.69802972]
[1764567959328,4.5202425,126.38,126.35,7.91452314]
[1764567959528,3.5,126.37,126.34,7.91503607]
[1764567959740,4.22,126.37,126.34,7.91503607]
[1764567959950,0.72,126.36,126.34,7.91503607]
[1764567961369,13.30231835,126.36,126.34,7.91503607]
[1764567961876,0.72,126.35,126.34,7.91503607]
[1764567963284,0.72,126.35,126.33,19.78819573]
[1764567964074,16.08231835,126.34,126.32,7.91640278]
[1764567964560,0.72,126.33,126.32,7.91640278]
[1764567965269,0.72,126.33,126.3,27.71079981]
[1764567970460,13.30231835,126.33,126.3,27.71079981]
[1764567970658,12.58231835,126.32,126.3,7.91765637]
[1764567970868,0.72,126.32,126.3,7.91765637]
[1764567971175,0.72,126.31,126.3,7.91765637]
[1764567971750,0.72,126.31,126.28,27.71548492]
[1764567971951,0.72,126.32,126.28,40.29780327]
[1764567972169,0.72,126.32,126.29,12.58231835]
[1764567973176,0.72,126.34,126.3,12.58231835]
[1764567973379,4.1406,126.34,126.3,12.58231835]
[1764567973782,3.5,126.34,126.31,27.70960335]
[1764567974278,21.39226327,126.36,126.31,40.2919217]
[1764567974576,3.5,126.35,126.31,40.2919217]
[1764567974789,12.58231835,126.38,126.32,12.58231835]
[1764567975085,16.08231835,126.39,126.34,12.58231835]
[1764567975283,16.08231835,126.39,126.32,3.58]
[1764567975470,0.72,126.38,126.33,12.58231835]
[1764567975666,0.72,126.38,126.34,12.58231835]
[1764567975878,0.72,126.38,126.35,7.91452314]
[1764567976057,0.72,126.38,126.35,27.70083101]
[1764567976263,12.58231835,126.37,126.34,7.91499538]
[1764567976463,3.5,126.36,126.34,7.91499538]
[1764567976873,0.72,126.35,126.34,7.91499538]
[1764567978507,3.5,126.36,126.34,7.91499538]
[1764567978681,4.22,126.36,126.34,7.91499538]
[1764567978889,4.22,126.36,126.34,20.49731373]
[1764567979893,14.88902732,126.4,126.37,16.308864]
[1764567980060,14.88902732,126.4,126.39,12.58231835]
[1764567980368,0.72,126.39,126.38,7.9126444]
[1764567980974,13.30231835,126.39,126.38,7.9126444]
[1764567981187,0.72,126.39,126.38,7.9126444]
[1764567981768,0.72,126.39,126.37,27.69501783]
[1764567981967,3.5,126.38,126.37,27.69501783]
[1764567982369,4.22,126.38,126.37,27.69501783]
[1764567982769,27.47134567,126.4,126.37,27.77501783]
[1764567982770,14.88902732,126.4,126.37,27.77501783]
[1764567982971,15.65793937,126.41,126.39,28.89118235]
[1764567983171,17.31576348,126.43,126.39,28.89118235]
[1764567983172,1e-08,126.43,126.42,16.308864]
[1764567983368,17.36467553,126.44,126.42,32.39118235]
[1764567983369,1e-08,126.44,126.42,32.39118235]
[1764567983591,0.72,126.45,126.43,16.308864]
[1764567983793,0.72,126.44,126.43,16.308864]
[1764567983996,0.72,126.44,126.43,28.89118235]
[1764567984178,22.52249964,126.46,126.41,16.308864]
[1764567984389,0.72,126.45,126.41,16.308864]
[1764567984596,0.72,126.45,126.43,12.58231835]
[1764567984974,0.72,126.45,126.44,7.90888959]
[1764567986693,0.72,126.45,126.44,20.49120794]
[1764567986883,18.30249964,126.46,126.44,20.49120794]
[1764567987084,18.30249964,126.46,126.45,12.58231835]
[1764567987497,18.30249964,126.46,126.44,24.21775359]
[1764567987796,18.30249964,126.46,126.45,12.58231835]
[1764567988000,18.30249964,126.46,126.45,20.49058248]
[1764567989805,18.30249964,126.46,126.45,7.90826413]
[1764567990021,18.30249964,126.46,126.45,20.49058248]
[1764567992412,18.30249964,126.46,126.45,15.9209392]
[1764567993545,18.96249964,126.46,126.45,15.9209392]
[1764567994519,18.96249964,126.46,126.45,7.90826413]
[1764567994720,18.96249964,126.46,126.44,24.21753979]
[1764567994906,0.66,126.45,126.44,24.21753979]
[1764567995515,0.66,126.45,126.44,7.90867579]
[1764567995924,0.66,126.45,126.43,24.32153907]
[1764567995925,4.16,126.45,126.43,24.32153907]
[1764567996304,0.66,126.44,126.43,8.01267507]
[1764567996838,0.66,126.44,126.43,15.92219021]
[1764567998346,0.66,126.44,126.42,15.92281587]
[1764567998503,0.66,126.44,126.42,7.9101408]
[1764567999520,0.66,126.44,126.42,15.92281587]
[1764567999725,4.16,126.44,126.43,8.01267507]
[1764568000607,4.16,126.44,126.43,15.92219021]
[1764568001428,4.16,126.44,126.43,7.90951514]
[1764568002422,4.16,126.44,126.42,2.88633515]
[1764568002930,4.16,126.44,126.43,2.88633515]
[1764568003804,4.16,126.44,126.43,10.79585029]
[1764568004929,4.16,126.44,126.42,2.88633515]
[1764568005829,4.16,126.44,126.43,7.90951514]
[1764568006234,3.5,126.44,126.43,7.90951514]
[1764568006834,4.16,126.44,126.43,7.90951514]
[1764568007916,18.96249964,126.46,126.43,10.79585029]
[1764568008110,18.30249964,126.46,126.45,2.88633515]
[1764568008305,18.30249964,126.46,126.45,8.01347966]
[1764568008809,18.96249964,126.46,126.45,8.01347966]
[1764568009018,18.96249964,126.46,126.44,8.01347966]
[1764568010136,18.96249964,126.46,126.45,7.90826413]
[1764568011036,18.30249964,126.46,126.45,7.90826413]
[1764568011723,18.96249964,126.46,126.45,7.90826413]
[1764568012221,26.9759793,126.46,126.42,7.9101408]
[1764568012452,20.98342458,126.45,126.42,7.9101408]
[1764568012839,0.66,126.44,126.42,7.9101408]
[1764568013066,3.5,126.43,126.41,27.68700654]
[1764568013438,0.66,126.42,126.41,27.68700654]
[1764568015540,0.66,126.42,126.41,19.77623999]
[1764568017857,0.66,126.42,126.41,27.68700654]
[1764568018163,0.66,126.42,126.41,7.91076655]
[1764568019041,0.66,126.42,126.4,7.91121135]
[1764568020168,0.66,126.42,126.39,27.69159574]
[1764568021064,8.01347966,126.41,126.39,7.91201835]
[1764568021265,11.51347966,126.4,126.39,7.91201835]
[1764568021472,20.32342458,126.4,126.37,7.91288542]
[1764568021769,8.01347966,126.38,126.37,7.91288542]
[1764568022143,8.72347966,126.38,126.33,8.01347966]
[1764568022358,12.22347966,126.37,126.31,27.70960335]
[1764568022563,8.72347966,126.36,126.32,8.01347966]
[1764568022756,0.71,126.36,126.32,8.01347966]
[1764568022960,0.71,126.35,126.32,8.01347966]
[1764568023149,0.71,126.36,126.34,8.01347966]
[1764568023575,0.71,126.36,126.31,44.09846735]
[1764568023768,0.71,126.36,126.34,8.01347966]
[1764568024251,0.71,126.36,126.31,44.09846735]
[1764568024252,4.21,126.36,126.35,8.01347966]
[1764568024467,4.21,126.36,126.34,8.01347966]
[1764568024669,0.71,126.35,126.33,8.01347966]
[1764568025372,0.71,126.35,126.31,83.603615]
[1764568025556,0.71,126.35,126.33,8.01347966]
[1764568025756,0.71,126.35,126.34,7.91514959]
[1764568026352,0.71,126.35,126.34,15.92862925]
[1764568026850,0.71,126.35,126.34,8.01347966]
[1764568027549,3.5,126.36,126.34,8.01347966]
[1764568027750,3.5,126.36,126.35,8.01347966]
[1764568027950,4.21,126.36,126.35,8.01347966]
[1764568028570,4.21,126.36,126.35,2.88989192]
[1764568029259,4.21,126.36,126.35,10.80441506]
[1764568029968,0.71,126.36,126.35,10.80441506]
[1764568030571,3.5,126.37,126.35,10.80441506]
[1764568030785,4.21,126.37,126.35,10.80441506]
[1764568031573,0.71,126.36,126.35,10.80441506]
[1764568031771,0.71,126.36,126.34,10.80483775]
[1764568031962,0.71,126.36,126.34,7.91494583]
[1764568032275,0.71,126.36,126.34,10.80483775]
[1764568032663,0.71,126.36,126.34,30.59271174]
[1764568033073,3.5,126.37,126.35,2.88989192]
[1764568033280,3.5,126.37,126.36,2.88989192]
[1764568033574,3.5,126.37,126.36,10.80378872]
[1764568034356,4.21,126.37,126.36,10.80378872]
[1764568041964,3.5,126.37,126.36,2.88989192]
[1764568042366,4.21,126.37,126.36,2.88989192]
[1764568044388,4.21,126.37,126.36,10.80378872]
[1764568044890,0.71,126.37,126.36,10.80378872]
[1764568045995,3.5,126.38,126.36,30.58853072]
[1764568046179,4.17,126.38,126.36,30.58853072]
[1764568046579,4.17,126.38,126.37,2.88989192]
[1764568048086,4.17,126.38,126.37,7.91327055]
[1764568052400,4.17,126.38,126.37,4.51431307]
[1764568052779,4.17,126.38,126.36,4.51431307]
[1764568052979,0.67,126.37,126.36,4.51431307]
[1764568053381,0.67,126.37,126.36,12.42820987]
[1764568055116,0.67,126.4,126.36,71.86243588]
[1764568055412,4.17,126.41,126.39,4.51431307]
[1764568055576,4.17,126.41,126.4,4.51431307]
[1764568056216,4.17,126.41,126.39,4.51431307]
[1764568056386,0.67,126.4,126.39,4.51431307]
[1764568057000,0.67,126.4,126.39,12.42633142]
[1764568057883,0.67,126.4,126.39,7.91201835]
[1764568058205,3.5,126.41,126.39,4.51431307]
[1764568058388,3.5,126.41,126.38,27.69425541]
[1764568058787,0.67,126.4,126.38,27.69425541]
[1764568058989,0.67,126.4,126.38,19.78161101]
[1764568059214,0.17,126.4,126.38,19.78161101]
[1764568059580,0.17,126.4,126.39,4.51431307]
[1764568060485,0.17,126.4,126.38,19.78161101]
[1764568061020,0.17,126.4,126.36,67.26812281]
[1764568061185,62.17,126.4,126.37,4.51431307]
[1764568061385,62.17,126.4,126.38,4.51431307]
[1764568061593,0.67,126.39,126.38,4.51431307]
[1764568062301,0.67,126.39,126.38,12.42695747]
[1764568063197,3.5,126.41,126.38,32.20856848]
[1764568063400,0.67,126.41,126.4,4.51431307]
[1764568063602,4.17,126.41,126.4,4.51431307]
[1764568064312,4.17,126.41,126.4,12.42570547]
[1764568064703,4.17,126.41,126.4,7.9113924]
[1764568064897,4.17,126.41,126.4,12.42570547]
[1764568065302,3.5,126.41,126.4,12.42570547]
[1764568065593,3.5,126.44,126.4,32.78418648]
[1764568065799,0.67,126.43,126.42,4.51431307]
[1764568066686,0.67,126.43,126.42,12.42445387]
[1764568067507,3.5,126.44,126.42,12.42445387]
[1764568067706,4.17,126.44,126.43,4.51431307]
[1764568068410,18.30249964,126.46,126.43,21.40317707]
[1764568068651,18.30249964,126.46,126.45,4.51431307]
[1764568068796,18.30249964,126.46,126.45,12.4225772]
[1764568069113,18.30249964,126.46,126.45,13.0025772]
[1764568069307,18.30249964,126.46,126.45,7.90826413]
[1764568069915,18.30249964,126.46,126.45,12.4225772]
[1764568070098,18.97249964,126.46,126.45,12.4225772]
[1764568070817,18.97249964,126.46,126.44,12.42320266]
[1764568070999,18.30249964,126.46,126.44,12.42320266]
[1764568072938,18.30249964,126.46,126.45,12.4225772]
[1764568074138,18.30249964,126.46,126.45,13.0025772]
[1764568078941,18.30249964,126.46,126.45,12.4225772]
[1764568079147,18.99249964,126.46,126.45,12.4225772]
[1764568079355,18.99249964,126.46,126.45,7.90826413]
[1764568079714,18.30249964,126.46,126.45,13.0025772]
[1764568080418,18.30249964,126.46,126.45,7.90826413]
[1764568080628,18.30249964,126.46,126.45,12.4225772]
[1764568081116,18.30249964,126.46,126.44,7.90888959]
[1764568081332,18.30249964,126.46,126.45,4.51431307]
[1764568082442,18.30249964,126.46,126.45,5.09431307]
[1764568083247,18.30249964,126.46,126.45,13.0025772]
[1764568083438,18.30249964,126.46,126.45,12.4225772]
[1764568086331,18.30249964,126.46,126.45,7.90826413]
[1764568086642,18.30249964,126.46,126.45,4.51431307]
[1764568088053,18.99249964,126.46,126.45,4.51431307]
[1764568088451,18.99249964,126.46,126.45,28.7314412]
[1764568089268,18.99249964,126.46,126.45,7.90826413]
[1764568089472,18.99249964,126.46,126.45,24.21712813]
[1764568089859,18.99249964,126.46,126.45,28.7314412]
[1764568091673,18.99249964,126.46,126.45,7.90826413]
[1764568093258,18.99249964,126.46,126.45,12.4225772]
[1764568093961,18.99249964,126.46,126.45,7.90826413]
[1764568095177,18.99249964,126.46,126.44,32.19542663]
[1764568095350,3.5,126.45,126.44,27.68111356]
[1764568095552,4.19,126.45,126.44,32.19542663]
[1764568095748,3.5,126.45,126.44,32.19542663]
[1764568095955,18.30249964,126.46,126.44,32.77542663]
[1764568096153,18.30249964,126.46,126.45,5.09431307]
[1764568097278,18.30249964,126.46,126.45,12.4225772]
[1764568097779,22.49249964,126.46,126.45,7.90826413]
[1764568098369,22.49249964,126.46,126.43,7.90951514]
[1764568098693,0.69,126.45,126.43,27.683303]
[1764568098861,3.5,126.44,126.43,27.683303]
[1764568099257,4.19,126.44,126.43,32.19761607]
[1764568099775,4.19,126.44,126.43,27.683303]
[1764568099957,4.19,126.44,126.43,7.90951514]
[1764568105587,8.80994492,126.43,126.42,7.90991612]
[1764568105792,9.51994492,126.43,126.42,7.90991612]
[1764568106785,14.03425799,126.43,126.39,19.77936978]
[1764568106991,8.72431307,126.42,126.39,19.77936978]
[1764568107178,4.21,126.42,126.39,19.77936978]
[1764568107378,0.71,126.41,126.39,27.69138813]
[1764568107572,3.5,126.4,126.39,27.69138813]
[1764568107774,3.5,126.4,126.39,32.2057012]
[1764568108485,3.5,126.4,126.39,27.69138813]
[1764568111505,4.21,126.4,126.39,7.91201835]
[1764568113496,4.21,126.4,126.38,7.9126444]
[1764568113672,0.71,126.39,126.38,7.9126444]
[1764568115194,4.21,126.4,126.38,27.69425541]
[1764568118902,0.71,126.39,126.38,7.9126444]
[1764568120191,0.71,126.39,126.37,7.91327055]
[1764568120384,0.71,126.39,126.37,10.80200322]
[1764568120785,0.71,126.39,126.37,30.5851796]
[1764568121510,3.59873267,126.39,126.36,7.91373638]
[1764568121982,0.71,126.38,126.36,7.91373638]
[1764568122185,3.5,126.37,126.35,27.70034735]
[1764568123987,0.71,126.36,126.35,27.70034735]
[1764568125303,4.21,126.37,126.35,30.58908002]
[1764568126716,3.5,126.37,126.36,2.88873267]
[1764568126907,0.71,126.42,126.36,15.02366335]
[1764568127099,4.21,126.42,126.4,2.88873267]
[1764568127302,4.21,126.42,126.39,2.88873267]
[1764568127518,0.71,126.41,126.39,2.88873267]
[1764568128221,0.71,126.41,126.4,7.9113924]
[1764568129601,0.71,126.41,126.39,19.78002631]
[1764568129803,3.5,126.42,126.4,2.88873267]
[1764568130121,4.21,126.42,126.39,8.49201835]
[1764568130419,4.21,126.42,126.4,2.88873267]
[1764568131621,3.5,126.42,126.41,7.91076655]
[1764568131822,0.71,126.43,126.41,30.5764156]
[1764568132130,3.5,126.44,126.42,2.88873267]
[1764568132706,3.5,126.44,126.43,2.88873267]
[1764568133925,3.5,126.44,126.43,10.79824781]
[1764568137025,3.5,126.44,126.43,7.90951514]
[1764568139107,3.5,126.44,126.43,2.88873267]
[1764568140028,3.5,126.44,126.43,10.79824781]
[1764568140726,3.5,126.44,126.43,7.90951514]
[1764568140907,3.5,126.44,126.43,10.79824781]
[1764568141428,3.5,126.44,126.43,11.37824781]
[1764568141612,18.30249964,126.46,126.43,31.15203567]
[1764568141813,19.0714117,126.47,126.45,2.88873267]
[1764568142018,19.0714117,126.47,126.46,2.88873267]
[1764568142218,19.0714117,126.47,126.46,16.308864]
[1764568142407,19.0714117,126.47,126.46,19.77759667]
[1764568143114,19.0714117,126.47,126.46,27.10523544]
[1764568146516,19.0714117,126.47,126.46,27.68523544]
[1764568147229,19.0714117,126.47,126.46,27.10523544]
[1764568148714,1e-08,126.47,126.46,27.10523544]
[1764568148920,1e-08,126.47,126.46,27.68523544]
[1764568149230,1e-08,126.47,126.46,24.21650277]
[1764568149429,1e-08,126.47,126.46,27.10523544]
[1764568151934,0.69000001,126.47,126.46,7.90763877]
[1764568152134,0.69000001,126.47,126.46,10.79637144]
[1764568152336,1e-08,126.47,126.46,10.79637144]
[1764568153641,1e-08,126.47,126.46,11.37637144]
[1764568154138,1e-08,126.47,126.46,10.79637144]
[1764568154338,1e-08,126.47,126.46,11.37637144]
[1764568155140,1e-08,126.47,126.46,10.79637144]
[1764568156423,1e-08,126.47,126.45,27.67891825]
[1764568156626,20.57814786,126.5,126.47,16.308864]
[1764568156831,21.14705991,126.51,126.49,19.19759667]
[1764568157134,21.14705991,126.51,126.5,2.88873267]
[1764568158640,21.14705991,126.51,126.5,10.793871]
[1764568161239,21.83705991,126.51,126.5,10.793871]
[1764568161726,21.14705991,126.51,126.5,11.373871]
[1764568162134,21.14705991,126.51,126.5,10.793871]
[1764568165648,21.14705991,126.51,126.5,11.373871]
[1764568165827,21.14705991,126.51,126.5,10.793871]
[1764568168644,21.14705991,126.51,126.5,11.373871]
[1764568169046,21.14705991,126.51,126.5,10.793871]
[1764568171550,21.83705991,126.51,126.5,7.90513833]
[1764568171740,25.33705991,126.51,126.5,7.90513833]
[1764568172052,25.33705991,126.51,126.5,10.793871]
[1764568174441,25.33705991,126.51,126.5,7.90513833]
[1764568174948,25.33705991,126.51,126.48,10.79477532]
[1764568175150,0.69,126.5,126.49,2.88873267]
[1764568175654,0.69,126.5,126.49,7.9057633]
[1764568176049,0.69,126.5,126.49,10.79449597]
[1764568176456,0.69,126.5,126.49,12.41080929]
[1764568177038,0.69,126.5,126.47,7.90701352]
[1764568177243,3.5,126.49,126.47,7.90701352]
[1764568177631,0.69,126.48,126.47,7.90701352]
[1764568178028,3.5,126.49,126.46,19.76842278]
[1764568178234,24.64705991,126.51,126.48,4.50504599]
[1764568178434,0.69,126.5,126.47,0.58]
[1764568178936,0.69,126.5,126.46,36.65728678]
[1764568179544,0.69,126.5,126.49,4.50504599]
[1764568180434,0.69,126.5,126.49,12.41080929]
[1764568182944,0.69,126.5,126.49,4.50504599]
[1764568183555,0.69,126.5,126.48,4.50504599]
[1764568183770,0.69,126.5,126.47,27.67300618]
[1764568183771,0.69,126.5,126.47,32.17805217]
[1764568184064,3.5,126.49,126.47,32.17805217]
[1764568184443,4.19,126.49,126.47,32.17805217]
[1764568184663,4.19,126.49,126.47,27.67300618]
[1764568184842,4.19,126.49,126.47,32.17805217]
[1764568185057,3.5,126.49,126.47,32.17805217]
[1764568185398,0.69,126.48,126.47,27.67300618]
[1764568186564,0.69,126.48,126.47,19.76599266]
[1764568186878,5.19504599,126.48,126.46,7.90763877]
[1764568187067,3.5,126.47,126.46,7.90763877]
[1764568187272,4.19,126.47,126.46,7.90763877]
[1764568187458,8.69504599,126.47,126.46,7.90763877]
[1764568189378,8.69504599,126.47,126.44,7.90888959]
[1764568189577,0.69,126.46,126.44,7.90888959]
[1764568190075,0.69,126.46,126.44,27.68111356]
[1764568190464,69.90538691,126.5,126.44,32.18615955]
[1764568190671,8.80994492,126.48,126.44,32.18615955]
[1764568191065,0.69,126.47,126.44,32.18615955]
[1764568191376,3.5,126.46,126.44,32.18615955]
[1764568191974,3.5,126.46,126.44,19.77222397]
[1764568192272,4.19,126.46,126.44,19.77222397]
[1764568195178,3.5,126.46,126.44,32.18615955]
[1764568195371,4.19,126.46,126.45,4.50504599]
[1764568196081,4.19,126.46,126.44,32.18615955]
[1764568196383,3.5,126.46,126.44,32.76615955]
[1764568196762,3.5,126.46,126.44,27.68111356]
[1764568196967,4.22,126.46,126.44,32.18615955]
[1764568198481,4.22,126.47,126.44,32.76615955]
[1764568198657,4.22,126.47,126.44,32.18615955]
[1764568198977,0.72,126.46,126.44,32.18615955]
[1764568199476,3.5,126.47,126.44,32.76615955]
[1764568200060,4.22,126.47,126.44,32.76615955]
[1764568200787,4.22,126.47,126.46,7.90763877]
[1764568201589,3.5,126.47,126.46,7.90763877]
[1764568202284,3.5,126.47,126.45,43.98778847]
[1764568202587,4.22,126.47,126.45,48.49283446]
[1764568203174,4.22,126.47,126.45,43.98778847]
[1764568203393,4.22,126.47,126.45,48.49283446]
[1764568204797,4.22,126.47,126.45,43.98778847]
[1764568205085,14.03499091,126.46,126.43,27.68266395]
[1764568205286,9.52994492,126.46,126.43,27.68266395]
[1764568205479,5.22504599,126.45,126.43,27.68266395]
[1764568205680,3.5,126.44,126.43,27.68266395]
[1764568205984,4.22,126.44,126.43,27.68266395]
[1764568206686,4.22,126.44,126.41,27.68768293]
[1764568206883,0.72,126.43,126.41,27.68768293]
[1764568208900,0.72,126.43,126.41,19.77691638]
[1764568210104,4.50504599,126.42,126.39,7.91182495]
[1764568210283,8.00504599,126.41,126.39,7.91182495]
[1764568210778,0.72,126.4,126.39,7.91182495]
[1764568210982,5.22504599,126.4,126.37,0.2]
[1764568211187,4.50504599,126.39,126.37,0.2]
[1764568211484,8.00504599,126.38,126.37,0.2]
[1764568211782,8.72504599,126.38,126.37,0.2]
[1764568211982,17.53499091,126.38,126.37,0.2]
[1764568212982,13.02994492,126.38,126.37,0.2]
[1764568213197,17.53499091,126.38,126.37,0.2]
[1764568217294,16.308864,126.4,126.37,0.2]
[1764568217498,4.22,126.39,126.37,0.2]
[1764568217696,4.22,126.39,126.37,8.11327055]
[1764568218091,3.5,126.39,126.37,8.11327055]
[1764568218292,3.5,126.39,126.37,12.61831654]
[1764568218500,3.5,126.39,126.37,32.40149292]
[1764568219201,4.22,126.39,126.37,27.89644693]
[1764568221995,3.5,126.39,126.37,32.98149292]
[1764568222181,3.5,126.4,126.37,28.47644693]
[1764568222381,4.22,126.4,126.37,28.47644693]
[1764568222592,4.22,126.4,126.38,4.50504599]
[1764568223107,4.22,126.4,126.39,7.91201835]
[1764568223410,3.5,126.4,126.39,7.91201835]
[1764568223596,75.31499091,126.43,126.39,32.77711022]
[1764568223597,62.72,126.43,126.39,32.77711022]
[1764568223783,4.22,126.42,126.39,32.77711022]
[1764568223987,4.22,126.42,126.39,32.19711022]
[1764568224510,4.22,126.42,126.39,27.69206423]
[1764568224695,4.22,126.42,126.39,32.19711022]
[1764568226205,3.5,126.42,126.39,27.69206423]
[1764568226413,0.71,126.41,126.39,27.69206423]
[1764568226904,0.71,126.41,126.39,32.19711022]
[1764568227219,3.5,126.42,126.39,27.69206423]
[1764568227398,3.5,126.42,126.4,5.08504599]
[1764568227592,3.5,126.42,126.41,7.91076655]
[1764568231224,3.5,126.42,126.41,12.41581254]
[1764568233314,3.5,126.42,126.41,7.91076655]
[1764568233521,3.5,126.42,126.41,12.41581254]
[1764568235827,3.5,126.42,126.41,7.91076655]
[1764568236124,4.21,126.42,126.41,7.91076655]
[1764568238034,4.21,126.42,126.4,27.68987341]
[1764568238333,4.21,126.42,126.41,2.88727728]
[1764568239138,4.21,126.42,126.41,10.79804383]
[1764568240339,8.80994492,126.41,126.38,19.78143922]
[1764568240539,3.5,126.4,126.38,19.78143922]
[1764568240719,4.21,126.4,126.38,19.78143922]
[1764568241049,0.71,126.39,126.38,27.69408362]
[1764568244724,0.71,126.39,126.37,0.2]
[1764568244725,8.80994492,126.38,126.37,0.2]
[1764568244937,11.6972222,126.38,126.37,0.2]
[1764568245244,9.51994492,126.38,126.37,0.2]
[1764568246038,12.4072222,126.38,126.37,0.2]
[1764568247550,15.9072222,126.38,126.37,0.2]
[1764568249068,13.01994492,126.38,126.37,0.2]
[1764568249367,15.9072222,126.38,126.37,0.2]
[1764568250629,13.01994492,126.38,126.37,0.2]
[1764568254352,3.5,126.38,126.37,8.11327055]
[1764568254552,9.51994492,126.4,126.37,31.36372421]
[1764568254852,3.5,126.39,126.37,27.89644693]
[1764568255042,3.5,126.39,126.37,28.47644693]
[1764568256045,3.5,126.39,126.38,10.79992168]
[1764568256246,3.5,126.39,126.38,7.9126444]
[1764568256447,3.5,126.39,126.38,10.79992168]
[1764568259659,3.5,126.39,126.38,11.37992168]
[1764568259859,3.5,126.39,126.38,10.79992168]
[1764568260259,3.5,126.39,126.38,11.37992168]
[1764568260457,7.90696795,126.48,126.38,47.47039669]
[1764568260663,0.69,126.46,126.43,2.88727728]
[1764568261462,0.69,126.48,126.45,2.88727728]
[1764568261669,4.19,126.47,126.41,16.308864]
[1764568261841,3.5,126.46,126.44,2.88727728]
[1764568262041,4.19,126.46,126.44,2.88727728]
[1764568262258,0.69,126.45,126.44,7.90888959]
[1764568262470,4.19,126.46,126.44,7.90888959]
[1764568262845,0.69,126.45,126.44,7.90888959]
[1764568263066,4.19,126.46,126.44,7.90888959]
[1764568263274,0.69,126.45,126.44,7.90888959]
[1764568263454,3.5,126.46,126.44,7.90888959]
[1764568263455,4.19,126.46,126.44,7.90888959]
[1764568263645,0.69,126.45,126.44,7.90888959]
[1764568264464,3.5,126.46,126.44,7.90888959]
[1764568264648,4.19,126.46,126.44,7.90888959]
[1764568264850,4.19,126.46,126.44,10.79616687]
[1764568265545,0.69,126.45,126.44,7.90888959]
[1764568267475,62.69,126.45,126.44,7.90888959]
[1764568267966,62.69,126.45,126.43,19.77265794]
[1764568268174,0.69,126.44,126.43,19.77265794]
[1764568269375,0.69,126.44,126.43,27.68217308]
[1764568269562,0.69,126.44,126.43,30.56945036]
[1764568270071,62.0,126.45,126.43,30.56945036]
[1764568270374,62.69,126.45,126.43,30.56945036]
[1764568272676,0.69,126.44,126.43,7.90951514]
[1764568274674,0.69,126.44,126.41,27.68715939]